bitfinex-derivatives/quotes_BTCF0:USTF0_20210703
["timestamp","ask_amount","ask_price","bid_price","bid_amount"]
[1625324407193,3.28834277,34656.0,34655.0,4.77030705]
[1625324408046,3.28834277,34656.0,34655.0,3.4171291]
[1625324409948,3.27124302,34656.0,34655.0,3.4171291]
[1625324410350,3.27124302,34656.0,34655.0,3.4137092]
[1625324410551,3.27124302,34656.0,34655.0,4.77283234]
[1625324410650,3.27124302,34656.0,34655.0,4.77625248]
[1625324411202,3.27124302,34656.0,34655.0,3.41712934]
[1625324411752,3.27124302,34656.0,34655.0,4.77648335]
[1625324416969,3.27124302,34656.0,34655.0,4.71748335]
[1625324417318,3.28834391,34656.0,34655.0,4.71748335]
[1625324417617,3.28834391,34656.0,34655.0,3.35812934]
[1625324418117,4.65338786,34656.0,34655.0,3.35812934]
[1625324418669,4.65338786,34656.0,34655.0,3.41712934]
[1625324418770,4.65338786,34656.0,34655.0,3.35812934]
[1625324419824,5.16545343,34656.0,34655.0,3.86779097]
[1625324427841,5.16545343,34656.0,34655.0,3.92679097]
[1625324428194,4.93242343,34656.0,34655.0,3.92679097]
[1625324428293,4.87342343,34656.0,34655.0,3.92679097]
[1625324428393,4.85632254,34656.0,34655.0,3.92679097]
[1625324428595,2.2974407,34656.0,34655.0,5.28494344]
[1625324428998,1.27423989,34656.0,34655.0,6.81238848]
[1625324430298,0.59206557,34656.0,34655.0,6.81238848]
[1625324431150,0.08,34656.0,34655.0,6.81238848]
[1625324436963,0.08,34656.0,34655.0,6.89998848]
[1625324437063,0.08,34656.0,34655.0,7.39998848]
[1625324437765,0.08,34656.0,34655.0,7.31238848]
[1625324437964,0.08,34656.0,34655.0,6.81238848]
[1625324438715,0.08,34656.0,34655.0,2.07101606]
[1625324439272,0.08,34656.0,34655.0,6.81420923]
[1625324439916,0.08,34656.0,34655.0,7.04145923]
[1625324443625,0.069,34656.0,34655.0,7.04145923]
[1625324446835,0.9863,34657.0,34655.0,7.12795923]
[1625324446935,0.9863,34657.0,34655.0,7.04145923]
[1625324447235,0.9863,34657.0,34656.0,6.25613607]
[1625324447336,0.9863,34657.0,34656.0,6.31855542]
[1625324448740,0.9863,34657.0,34656.0,6.55913086]
[1625324451398,0.9863,34657.0,34656.0,6.82075086]
[1625324452450,1.29874,34657.0,34656.0,6.55913086]
[1625324452601,1.35774,34657.0,34656.0,6.55913086]
[1625324453202,1.86941603,34657.0,34656.0,5.03736803]
[1625324453702,1.86924538,34657.0,34656.0,5.03736803]
[1625324454051,2.55120546,34657.0,34656.0,5.03736803]
[1625324455506,3.57408504,34657.0,34656.0,5.03736803]
[1625324456810,2.55120546,34657.0,34656.0,5.03736803]
[1625324457310,3.57408028,34657.0,34656.0,5.03736803]
[1625324462522,2.55120546,34657.0,34656.0,5.03736803]
[1625324467880,3.57415136,34657.0,34656.0,5.03736803]
[1625324468931,2.55120546,34657.0,34656.0,5.03736803]
[1625324469181,2.23876546,34657.0,34656.0,5.03736803]
[1625324472641,1.55680538,34657.0,34656.0,5.03736803]
[1625324473446,1.49780538,34657.0,34656.0,5.03736803]
[1625324473647,1.49808837,34657.0,34656.0,6.55927008]
[1625324474049,0.9863,34657.0,34656.0,6.55927008]
[1625324478304,0.9863,34657.0,34656.0,6.64547008]
[1625324478452,0.9863,34657.0,34656.0,6.55927008]
[1625324478705,0.9863,34657.0,34656.0,6.61827008]
[1625324479053,0.9863,34657.0,34656.0,6.55927008]
[1625324484364,1.49822522,34657.0,34656.0,6.55927008]
[1625324487122,2.1811574,34657.0,34656.0,6.55927008]
[1625324488176,3.20523985,34657.0,34656.0,5.03736803]
[1625324491931,3.20523985,34657.0,34656.0,5.29197803]
[1625324492034,1.49840612,34657.0,34656.0,6.81507819]
[1625324495145,2.18116008,34657.0,34656.0,6.81507819]
[1625324504971,2.44703008,34657.0,34656.0,6.56046819]
[1625324505171,2.68760552,34657.0,34656.0,6.56046819]
[1625324505273,4.90667942,34657.0,34656.0,5.03736803]
[1625324505673,4.90667942,34657.0,34656.0,4.84236803]
[1625324505972,4.90667942,34657.0,34656.0,2.34146803]
[1625324506078,4.90667942,34657.0,34656.0,1.84126803]
[1625324506175,4.92377961,34657.0,34656.0,1.78226803]
[1625324506379,4.92377961,34657.0,34653.0,0.97312716]
[1625324506728,0.0171011,34656.0,34655.0,1.01304615]
[1625324506878,0.059,34655.0,34648.0,1.51956922]
[1625324507178,0.48115088,34649.0,34648.0,1.51956922]
[1625324507280,0.72030088,34649.0,34648.0,1.51956922]
[1625324507379,0.77930088,34649.0,34646.0,0.24057544]
[1625324507482,0.77930088,34649.0,34648.0,0.00342037]
[1625324507782,0.77930088,34649.0,34647.0,0.00342042]
[1625324508030,0.83830088,34649.0,34648.0,0.00342045]
[1625324508280,0.83830088,34649.0,34642.0,0.24057544]
[1625324508382,0.77930088,34649.0,34642.0,0.24057544]
[1625324508482,0.83830088,34649.0,34642.0,0.24057544]
[1625324508583,0.83830088,34649.0,34643.0,0.00342062]
[1625324509138,0.24057544,34644.0,34643.0,0.00342062]
[1625324509341,0.29957544,34644.0,34643.0,0.00342062]
[1625324509588,0.29957544,34644.0,34642.0,0.24057544]
[1625324510442,0.29957544,34644.0,34632.0,0.057]
[1625324510543,0.29957544,34644.0,34636.0,0.29957544]
[1625324510692,0.29957544,34644.0,34637.0,0.29632083]
[1625324510795,0.29957544,34644.0,34637.0,0.35532083]
[1625324510896,0.29957544,34644.0,34638.0,0.00342079]
[1625324511196,0.32592445,34639.0,34638.0,0.06242079]
[1625324511296,0.38492445,34639.0,34638.0,0.06242079]
[1625324511696,0.29957544,34639.0,34638.0,0.06242079]
[1625324514247,0.29957544,34639.0,34638.0,0.059]
[1625324514698,0.29957544,34639.0,34638.0,0.06242083]
[1625324514849,0.24057544,34639.0,34638.0,0.06242083]
[1625324515002,0.24057544,34639.0,34638.0,0.059]
[1625324515102,0.29957544,34639.0,34638.0,0.059]
[1625324517506,0.29957544,34639.0,34637.0,0.2929]
[1625324517704,0.29957544,34639.0,34636.0,0.24057544]
[1625324517853,0.35857544,34639.0,34636.0,0.24057544]
[1625324517955,0.51059521,34638.0,34636.0,0.24057544]
[1625324518104,0.56959521,34638.0,34636.0,0.24057544]
[1625324518608,0.059,34638.0,34636.0,0.24057544]
[1625324518956,0.059,34638.0,34625.0,0.2929]
[1625324519057,0.059,34638.0,34636.0,0.59125965]
[1625324519206,0.48115088,34637.0,34636.0,0.59125965]
[1625324519306,0.54015088,34637.0,34636.0,0.59125965]
[1625324519458,0.54015088,34637.0,34636.0,0.08446566]
[1625324521209,0.54015088,34637.0,34635.0,0.50687697]
[1625324521210,0.54015088,34637.0,34635.0,0.08450758]
[1625324521914,0.59915088,34637.0,34634.0,0.59155442]
[1625324522418,0.59915088,34637.0,34634.0,0.08450894]
[1625324522666,0.59915088,34637.0,34632.0,0.25389918]
[1625324523018,0.33981538,34633.0,34631.0,0.25417443]
[1625324523116,0.39881538,34633.0,34631.0,0.25417443]
[1625324523216,0.24057544,34632.0,34631.0,0.25417443]
[1625324523366,0.29957544,34632.0,34631.0,0.25417443]
[1625324523618,0.89447111,34632.0,34631.0,0.25417443]
[1625324524121,0.46956989,34632.0,34631.0,0.16944962]
[1625324524270,0.29957544,34632.0,34630.0,0.25403746]
[1625324526075,0.29957544,34632.0,34629.0,0.59267674]
[1625324526174,0.29957544,34632.0,34629.0,0.65167674]
[1625324526624,0.29957544,34632.0,34629.0,0.31295496]
[1625324526725,0.56211544,34632.0,34629.0,0.31295496]
[1625324527026,0.56211544,34632.0,34629.0,0.65138799]
[1625324527225,0.24057544,34630.0,34629.0,0.65138799]
[1625324527376,0.29957544,34630.0,34629.0,0.31295496]
[1625324527877,0.29957544,34630.0,34629.0,0.14365165]
[1625324528930,0.29957544,34630.0,34629.0,0.059]
[1625324530284,0.35857544,34630.0,34628.0,0.08454414]
[1625324530934,0.35857544,34630.0,34621.0,1.5939419]
[1625324530935,0.35857544,34630.0,34624.0,0.59251376]
[1625324531235,0.48115088,34625.0,34624.0,0.59251376]
[1625324531437,0.54015088,34625.0,34624.0,0.25393447]
[1625324531686,0.76979088,34625.0,34624.0,0.25393447]
[1625324532040,0.76979088,34625.0,34624.0,0.08464482]
[1625324532444,0.76979088,34625.0,34621.0,0.59243566]
[1625324532691,0.76979088,34625.0,34621.0,3.566e-05]
[1625324532890,0.82879088,34625.0,34621.0,3.566e-05]
[1625324533344,0.82879088,34625.0,34616.0,1.26487133]
[1625324533345,0.48115088,34622.0,34616.0,1.26487133]
[1625324533442,0.59915088,34622.0,34616.0,1.26487133]
[1625324533993,0.59915088,34622.0,34616.0,0.08]
[1625324535298,0.24057544,34617.0,34616.0,0.08]
[1625324535399,0.54804544,34617.0,34616.0,0.08]
[1625324542611,0.29957544,34617.0,34616.0,0.08]
[1625324546573,0.29957544,34617.0,34616.0,0.08342283]
[1625324556945,0.29957544,34617.0,34616.0,0.33538283]
[1625324562113,0.29957544,34617.0,34616.0,0.08342283]
[1625324562513,0.3166916,34617.0,34616.0,0.08342283]
[1625324563865,0.5269616,34617.0,34616.0,0.08342283]
[1625324568778,0.3166916,34617.0,34616.0,0.08342283]
[1625324570983,0.2576916,34617.0,34616.0,0.08342283]
[1625324571334,0.3166916,34617.0,34616.0,0.08342283]
[1625324571635,0.3166916,34617.0,34616.0,0.14242283]
[1625324571735,0.29957544,34617.0,34616.0,0.14242283]
[1625324572185,0.24057544,34617.0,34616.0,0.14242283]
[1625324572739,0.24057544,34617.0,34616.0,0.20142283]
[1625324572938,0.24057544,34617.0,34616.0,0.87895163]
[1625324573489,0.24057544,34620.0,34616.0,0.87895163]
[1625324573591,0.24057544,34620.0,34619.0,0.48115088]
[1625324573740,0.24057544,34620.0,34619.0,0.54015088]
[1625324573989,0.24057544,34620.0,34619.0,0.54357349]
[1625324574091,0.24057544,34620.0,34619.0,2.23602754]
[1625324575249,0.24057544,34620.0,34619.0,3.42145164]
[1625324575447,0.24057544,34620.0,34619.0,3.48045164]
[1625324576050,0.24057544,34620.0,34619.0,4.83396058]
[1625324576400,0.68021642,34628.0,34619.0,4.83396058]
[1625324576950,0.68021642,34628.0,34620.0,0.00342225]
[1625324577050,0.68084719,34627.0,34625.0,1.01603928]
[1625324577352,0.68084719,34627.0,34625.0,1.07503928]
[1625324577453,0.68084719,34627.0,34626.0,0.00342218]
[1625324577555,0.68084719,34627.0,34626.0,0.06242218]
[1625324577654,1.0211857,34628.0,34626.0,2.23662761]
[1625324577655,0.68083562,34628.0,34626.0,2.23662761]
[1625324578003,0.68083562,34628.0,34627.0,0.00342218]
[1625324578107,0.68083562,34628.0,34627.0,0.99570473]
[1625324579055,0.68083562,34628.0,34627.0,2.01202714]
[1625324582113,0.24057544,34629.0,34627.0,3.19803312]
[1625324582364,0.24057544,34629.0,34628.0,0.00342193]
[1625324582463,0.24057544,34629.0,34628.0,0.06242193]
[1625324582564,0.24057544,34629.0,34628.0,2.94299036]
[1625324583223,0.68116295,34630.0,34628.0,2.94299036]
[1625324583621,2.91572888,34632.0,34629.0,4.46986776]
[1625324583622,0.9498,34632.0,34629.0,4.46986776]
[1625324583772,0.9498,34632.0,34629.0,4.53228912]
[1625324583970,0.9498,34632.0,34631.0,4.2273544]
[1625324584070,0.9498,34632.0,34631.0,4.2863544]
[1625324584275,0.9498,34632.0,34631.0,4.28977572]
[1625324584371,0.0001,34632.0,34631.0,4.28977572]
[1625324584473,0.68110069,34637.0,34631.0,4.28977572]
[1625324584673,0.68110069,34637.0,34631.0,4.34877572]
[1625324584772,0.68110069,34637.0,34632.0,0.00342093]
[1625324584922,0.68110069,34637.0,34632.0,0.12142093]
[1625324585024,0.24057544,34638.0,34636.0,4.51674108]
[1625324585173,0.24057544,34638.0,34636.0,4.57574108]
[1625324585273,0.24057544,34638.0,34637.0,0.00342079]
[1625324585524,0.24057544,34638.0,34637.0,4.28417117]
[1625324585626,0.24057544,34638.0,34637.0,4.76532205]
[1625324586374,0.24057544,34638.0,34637.0,4.76190126]
[1625324587428,0.24057544,34638.0,34637.0,3.41094114]
[1625324589832,0.24057544,34638.0,34637.0,2.22885103]
[1625324590333,0.24057544,34638.0,34637.0,3.4089309]
[1625324590739,0.24057544,34638.0,34637.0,2.22885103]
[1625324591384,0.24057544,34638.0,34637.0,3.4088286]
[1625324591738,0.24057544,34638.0,34637.0,2.22885103]
[1625324592086,0.24057544,34638.0,34637.0,1.55337097]
[1625324592238,0.24057544,34638.0,34637.0,2.22709348]
[1625324592587,0.91964075,34645.0,34637.0,2.28609348]
[1625324592787,0.67906531,34645.0,34637.0,2.28609348]
[1625324593741,1.66220128,34649.0,34644.0,0.79403088]
[1625324593840,1.66220128,34649.0,34644.0,0.91203088]
[1625324594339,0.9832,34649.0,34644.0,0.91203088]
[1625324594638,0.9832,34649.0,34645.0,0.67098073]
[1625324594740,0.9832,34649.0,34645.0,0.72998073]
[1625324594839,0.9832,34649.0,34645.0,0.78898073]
[1625324595690,0.9832,34649.0,34648.0,0.24057544]
[1625324595843,0.9832,34649.0,34648.0,0.29957544]
[1625324596241,0.24057544,34650.0,34648.0,0.29957544]
[1625324602655,0.29957544,34650.0,34648.0,0.29957544]
[1625324603261,0.24057544,34650.0,34648.0,0.29957544]
[1625324604363,0.29957544,34650.0,34648.0,0.29957544]
[1625324606366,0.29957544,34650.0,34648.0,0.54271544]
[1625324608628,0.29957544,34650.0,34649.0,0.00342032]
[1625324608776,0.29957544,34650.0,34649.0,0.06242032]
[1625324611032,0.24057544,34650.0,34649.0,0.06242032]
[1625324614487,0.24057544,34655.0,34649.0,0.06242032]
[1625324614938,0.29957544,34655.0,34649.0,0.06242032]
[1625324615139,0.29957544,34655.0,34650.0,0.00341996]
[1625324615441,0.29957544,34655.0,34650.0,0.06241996]
[1625324615692,0.29957544,34655.0,34650.0,0.059]
[1625324615792,0.29957544,34655.0,34654.0,0.24057544]
[1625324615942,0.29957544,34655.0,34654.0,0.29957544]
[1625324616093,0.29957544,34655.0,34654.0,0.24057544]
[1625324616244,0.29957544,34655.0,34654.0,0.24399554]
[1625324616496,0.29957544,34655.0,34654.0,0.30299554]
[1625324616596,0.29957544,34655.0,34654.0,0.24399554]
[1625324616695,0.29957544,34655.0,34654.0,0.30299554]
[1625324616795,0.29957544,34655.0,34654.0,0.24399554]
[1625324619800,0.35857544,34655.0,34654.0,0.24399554]
[1625324619900,0.29957544,34655.0,34654.0,0.24399554]
[1625324620001,0.31667733,34655.0,34654.0,0.24057544]
[1625324620102,0.82378909,34655.0,34654.0,0.24057544]
[1625324620203,0.88278909,34655.0,34654.0,0.24057544]
[1625324620553,0.88278909,34655.0,34654.0,0.24399587]
[1625324620903,0.82378909,34655.0,34654.0,0.24399587]
[1625324621104,1.50005228,34655.0,34654.0,0.24399587]
[1625324621254,1.55905228,34655.0,34654.0,0.24057544]
[1625324622157,2.57349597,34655.0,34654.0,0.24057544]
[1625324622958,2.51449597,34655.0,34654.0,0.24057544]
[1625324623258,3.69851644,34655.0,34654.0,0.24057544]
[1625324623358,3.75751644,34655.0,34654.0,0.24057544]
[1625324623658,3.69851644,34655.0,34654.0,0.24057544]
[1625324624009,3.69851644,34655.0,34654.0,0.24399584]
[1625324624210,1.50005228,34655.0,34654.0,0.24399584]
[1625324624659,2.51503852,34655.0,34654.0,0.24399584]
[1625324625460,2.57403852,34655.0,34654.0,0.24399584]
[1625324625810,2.57403852,34655.0,34654.0,0.24057544]
[1625324627118,3.75967205,34655.0,34654.0,0.24057544]
[1625324627264,3.70067205,34655.0,34654.0,0.24057544]
[1625324627470,3.70067205,34655.0,34654.0,0.24399578]
[1625324627617,2.51503852,34655.0,34654.0,0.24399578]
[1625324628018,3.70078626,34655.0,34654.0,0.24399578]
[1625324628221,3.70078626,34655.0,34654.0,0.24057544]
[1625324629069,3.75978626,34655.0,34654.0,0.24057544]
[1625324629323,5.1161045,34655.0,34654.0,0.24057544]
[1625324629422,5.1161045,34655.0,34651.0,0.24057544]
[1625324629571,5.36962204,34655.0,34651.0,0.24057544]
[1625324629823,4.98909703,34652.0,34651.0,0.24057544]
[1625324629923,5.10709703,34652.0,34651.0,0.24057544]
[1625324630132,5.06520043,34652.0,34651.0,0.29957544]
[1625324630331,5.06520043,34652.0,34651.0,0.30299598]
[1625324630582,2.52146463,34652.0,34651.0,0.30299598]
[1625324630732,2.46246463,34652.0,34651.0,0.30299598]
[1625324631036,1.4449364,34652.0,34651.0,0.30299598]
[1625324631134,1.427833,34652.0,34651.0,0.30299598]
[1625324631535,0.24057544,34652.0,34651.0,0.30299598]
[1625324631736,0.29957544,34652.0,34651.0,0.30299598]
[1625324631836,0.24057544,34652.0,34651.0,0.30299598]
[1625324632891,0.29957544,34652.0,34651.0,0.30299598]
[1625324633342,0.29957544,34652.0,34651.0,0.80559018]
[1625324634044,0.24057544,34652.0,34651.0,0.80559018]
[1625324635045,0.24057544,34652.0,34651.0,1.47622991]
[1625324635143,0.24057544,34652.0,34651.0,1.75888991]
[1625324635243,0.29957544,34652.0,34651.0,1.75888991]
[1625324635495,0.24057544,34652.0,34651.0,1.75888991]
[1625324636345,0.24057544,34652.0,34651.0,3.93559554]
[1625324640200,0.51069009,34654.0,34651.0,3.93559554]
[1625324640501,0.77268331,34657.0,34652.0,0.00341982]
[1625324640651,0.77268331,34657.0,34652.0,0.12141982]
[1625324640752,1.36140192,34661.0,34652.0,0.12141982]
[1625324641051,1.36140192,34661.0,34653.0,0.00341945]
[1625324641201,1.36140192,34661.0,34653.0,0.12141945]
[1625324641351,0.9358,34664.0,34655.0,1.33832339]
[1625324641451,0.9358,34664.0,34655.0,1.45632339]
[1625324641553,0.01709695,34663.0,34656.0,0.00341939]
[1625324641752,0.01709695,34663.0,34656.0,1.40029739]
[1625324641852,0.01709695,34663.0,34662.0,0.72172632]
[1625324641953,0.01709695,34663.0,34662.0,1.04228632]
[1625324642154,0.01709695,34663.0,34662.0,1.04570565]
[1625324642354,0.01709664,34664.0,34662.0,1.04570565]
[1625324642657,0.059,34664.0,34662.0,1.04570565]
[1625324642908,0.059,34664.0,34662.0,1.04228632]
[1625324643858,0.059,34664.0,34662.0,1.28286176]
[1625324644110,1.42248726,34664.0,34662.0,1.28286176]
[1625324644813,0.059,34664.0,34662.0,1.28286176]
[1625324648168,0.059,34664.0,34662.0,1.02130176]
[1625324648268,0.26552,34664.0,34662.0,0.059]
[1625324648369,0.26552,34664.0,34658.0,1.33767348]
[1625324648518,0.32452,34664.0,34658.0,1.33767348]
[1625324648618,0.01709946,34663.0,34657.0,1.33814947]
[1625324648818,0.13509946,34663.0,34657.0,1.33814947]
[1625324649120,0.13509946,34663.0,34648.0,1.34164695]
[1625324649121,1.3622966,34658.0,34648.0,1.34164695]
[1625324649221,1.4212966,34658.0,34648.0,1.34164695]
[1625324649370,1.4802966,34658.0,34648.0,1.40064695]
[1625324649470,1.4802966,34658.0,34648.0,1.34164695]
[1625324649671,1.66036493,34654.0,34647.0,1.34288597]
[1625324649770,1.71936493,34654.0,34647.0,1.34288597]
[1625324649872,1.77836493,34654.0,34647.0,1.34288597]
[1625324649971,2.01894037,34654.0,34653.0,0.24057544]
[1625324650071,0.65623544,34654.0,34653.0,0.24057544]
[1625324650272,0.67333758,34654.0,34653.0,0.24057544]
[1625324650722,3.56938407,34654.0,34653.0,0.24057544]
[1625324652429,3.51038407,34654.0,34653.0,0.24057544]
[1625324652631,3.49328193,34654.0,34653.0,0.24057544]
[1625324653835,1.96009087,34654.0,34653.0,0.24057544]
[1625324654940,0.59723544,34654.0,34653.0,0.24057544]
[1625324655038,0.29957544,34654.0,34653.0,0.24057544]
[1625324655439,1.66261827,34654.0,34653.0,0.24057544]
[1625324655539,1.97655827,34654.0,34653.0,0.24057544]
[1625324655689,2.03555827,34654.0,34653.0,0.24057544]
[1625324656595,2.052661,34654.0,34653.0,0.24057544]
[1625324656692,3.58615607,34654.0,34653.0,0.24057544]
[1625324656894,3.58615607,34654.0,34650.0,0.24057544]
[1625324657300,0.01710319,34653.0,34650.0,0.24057544]
[1625324657501,0.07610319,34653.0,34650.0,0.24057544]
[1625324657796,2.89644171,34651.0,34650.0,0.24057544]
[1625324657994,3.19601715,34651.0,34650.0,0.24057544]
[1625324660599,1.66261685,34651.0,34650.0,0.24057544]
[1625324661201,2.85509399,34651.0,34650.0,0.24057544]
[1625324665107,1.49205258,34651.0,34650.0,0.24057544]
[1625324665205,2.85465935,34651.0,34650.0,0.24057544]
[1625324665555,2.79565935,34651.0,34650.0,0.24057544]
[1625324666156,2.85465935,34651.0,34650.0,0.24057544]
[1625324666558,1.49205258,34651.0,34650.0,0.57600432]
[1625324668011,1.25147714,34651.0,34650.0,0.81657976]
[1625324669314,2.61395799,34651.0,34650.0,0.48115088]
[1625324670066,2.83427799,34651.0,34650.0,0.48115088]
[1625324670971,3.8562424,34651.0,34650.0,0.48115088]
[1625324671524,5.3890556,34651.0,34650.0,0.48115088]
[1625324671671,5.40616107,34651.0,34650.0,0.48115088]
[1625324672071,5.64673651,34651.0,34650.0,0.48115088]
[1625324672773,5.62963104,34651.0,34650.0,0.48115088]
[1625324674077,5.64673671,34651.0,34650.0,0.48115088]
[1625324680193,5.64673671,34651.0,34650.0,0.24057544]
[1625324688507,5.36741671,34651.0,34650.0,0.24057544]
[1625324688609,3.83460351,34651.0,34650.0,0.24057544]
[1625324688709,3.83460351,34651.0,34650.0,0.24399602]
[1625324688809,3.83460351,34651.0,34650.0,0.30299602]
[1625324688911,3.59402807,34651.0,34650.0,0.30299602]
[1625324689062,1.03907008,34651.0,34650.0,0.30299602]
[1625324689160,1.09807008,34651.0,34650.0,0.30299602]
[1625324689759,1.08096441,34651.0,34650.0,0.30299602]
[1625324690209,1.08096441,34651.0,34650.0,0.7841469]
[1625324690461,1.08096441,34651.0,34650.0,1.28644359]
[1625324690611,1.02196441,34651.0,34650.0,1.28644359]
[1625324691263,1.02196441,34651.0,34650.0,0.95157913]
[1625324692016,2.21130525,34652.0,34650.0,1.11902602]
[1625324692115,0.059,34651.0,34650.0,1.11902602]
[1625324692265,0.059,34651.0,34650.0,1.11560544]
[1625324692564,0.059,34651.0,34650.0,0.78414663]
[1625324693868,0.059,34651.0,34650.0,1.11909285]
[1625324694271,0.059,34651.0,34650.0,0.78414663]
[1625324694773,1.07969858,34651.0,34650.0,1.11913616]
[1625324694920,1.07969858,34651.0,34650.0,1.28663092]
[1625324695371,1.07969858,34651.0,34650.0,1.11913616]
[1625324697728,1.07969858,34651.0,34650.0,0.78414663]
[1625324700235,1.02069858,34651.0,34650.0,0.78414663]
[1625324701185,0.51073736,34652.0,34650.0,3.63421235]
[1625324701585,0.51073736,34652.0,34651.0,0.00341997]
[1625324701736,0.1703025,34652.0,34651.0,2.86760202]
[1625324701886,0.1703025,34652.0,34651.0,2.92660202]
[1625324702136,0.51072846,34653.0,34651.0,2.92660202]
[1625324702385,0.56972846,34653.0,34652.0,0.00341991]
[1625324702486,0.56972846,34653.0,34652.0,0.06241991]
[1625324702638,0.56972846,34653.0,34652.0,2.93026624]
[1625324702937,0.56972846,34653.0,34652.0,0.73720728]
[1625324702938,1.76070343,34653.0,34652.0,0.73720728]
[1625324703386,0.7397154,34653.0,34652.0,1.75039583]
[1625324703687,1.76075117,34653.0,34652.0,0.73720728]
[1625324704389,1.76075117,34653.0,34652.0,1.75100959]
[1625324706045,1.76075117,34653.0,34652.0,1.69200959]
[1625324706148,2.97036525,34653.0,34652.0,0.67478737]
[1625324706244,3.02936525,34653.0,34652.0,0.67478737]
[1625324706344,3.51051613,34653.0,34652.0,0.67478737]
[1625324706699,6.40683932,34653.0,34650.0,0.48115088]
[1625324706848,6.65641932,34653.0,34650.0,0.48115088]
[1625324707150,5.79773205,34651.0,34650.0,0.48115088]
[1625324707449,5.87383609,34651.0,34650.0,0.48115088]
[1625324714564,5.87383609,34651.0,34647.0,0.06949151]
[1625324714714,5.87383609,34651.0,34647.0,0.05939151]
[1625324714815,5.87383609,34651.0,34645.0,0.67593212]
[1625324714816,5.79851223,34648.0,34645.0,0.50729169]
[1625324715064,5.85751223,34648.0,34645.0,0.50729169]
[1625324715164,0.01710529,34647.0,34645.0,0.50729169]
[1625324715264,4.26409816,34646.0,34645.0,0.50729169]
[1625324715514,4.32309816,34646.0,34645.0,0.50729169]
[1625324715664,4.34020385,34646.0,34645.0,0.50729169]
[1625324715766,5.87521423,34646.0,34644.0,0.50743928]
[1625324716166,0.01710584,34645.0,34644.0,0.50743928]
[1625324716265,4.34023209,34645.0,34644.0,0.50743928]
[1625324716366,5.06195841,34645.0,34644.0,0.50743928]
[1625324716817,6.59686417,34645.0,34643.0,0.50756083]
[1625324717266,6.57975833,34645.0,34643.0,0.50756083]
[1625324717368,4.26361122,34644.0,34643.0,0.50756083]
[1625324717467,4.32261122,34644.0,34643.0,0.50756083]
[1625324719172,4.32261122,34644.0,34641.0,0.67674777]
[1625324719173,4.32261122,34644.0,34642.0,0.67645897]
[1625324719521,4.2631148,34643.0,34641.0,0.67657748]
[1625324719822,4.3221148,34643.0,34641.0,0.67657748]
[1625324719923,4.26318196,34642.0,34641.0,0.67657748]
[1625324720077,4.32218196,34642.0,34641.0,0.67657748]
[1625324720525,4.32218196,34642.0,34641.0,0.67999869]
[1625324720728,4.32218196,34642.0,34641.0,1.69468805]
[1625324721278,2.95801147,34642.0,34641.0,1.69468805]
[1625324722336,2.95801147,34642.0,34641.0,1.69126684]
[1625324722835,4.32194006,34642.0,34641.0,0.67657748]
[1625324723135,4.32194006,34642.0,34641.0,0.67999867]
[1625324723335,2.95801147,34642.0,34641.0,1.69532545]
[1625324724944,4.3218183,34642.0,34641.0,1.69532545]
[1625324725041,4.3218183,34642.0,34641.0,1.69190426]
[1625324725545,4.3218183,34642.0,34641.0,0.67657748]
[1625324725793,4.3218183,34642.0,34641.0,0.67999864]
[1625324726044,4.3218183,34642.0,34641.0,0.67657748]
[1625324728148,4.3218183,34642.0,34640.0,0.67744318]
[1625324728399,0.24057544,34641.0,34640.0,0.67744318]
[1625324728500,4.50219578,34641.0,34640.0,0.67744318]
[1625324728600,4.56119578,34641.0,34640.0,0.67744318]
[1625324728750,4.56119578,34641.0,34640.0,0.68086451]
[1625324729255,4.56119578,34641.0,34640.0,0.67744318]
[1625324729602,4.56119578,34641.0,34640.0,0.6808645]
[1625324730456,4.56119578,34641.0,34640.0,0.00342132]
[1625324731055,5.07263134,34641.0,34640.0,0.51142873]
[1625324731356,5.07263134,34641.0,34640.0,0.50800741]
[1625324731709,5.07263134,34641.0,34640.0,0.84668717]
[1625324732160,5.07263134,34641.0,34640.0,0.8501085]
[1625324732262,5.07263134,34641.0,34640.0,0.51142874]
[1625324733563,5.07263134,34641.0,34640.0,0.82408874]
[1625324733665,5.07263134,34641.0,34640.0,1.50131167]
[1625324735065,5.07263134,34641.0,34640.0,0.82408874]
[1625324735918,5.08973824,34641.0,34640.0,0.82408874]
[1625324736019,5.08973824,34641.0,34640.0,1.16273553]
[1625324736972,3.72606745,34641.0,34640.0,0.82408874]
[1625324737571,3.72606745,34641.0,34640.0,1.50117327]
[1625324737772,3.70896055,34641.0,34640.0,1.50117327]
[1625324737922,3.40938511,34641.0,34640.0,1.50117327]
[1625324738273,3.40938511,34641.0,34640.0,2.51610183]
[1625324738274,2.21615187,34641.0,34640.0,2.51610183]
[1625324738472,2.21615187,34641.0,34640.0,2.81567727]
[1625324738973,0.17051384,34642.0,34640.0,5.34957828]
[1625324739273,0.17051384,34642.0,34640.0,5.40857828]
[1625324739423,0.17051384,34642.0,34641.0,0.0034208]
[1625324739523,0.17051384,34642.0,34641.0,0.1214208]
[1625324739873,0.51135291,34643.0,34641.0,4.85035142]
[1625324740073,0.51135291,34643.0,34641.0,4.79135142]
[1625324740174,0.51135291,34643.0,34642.0,0.00342078]
[1625324740325,0.51135291,34643.0,34642.0,0.06242078]
[1625324740574,0.51135291,34643.0,34642.0,0.30299622]
[1625324740674,0.51131614,34644.0,34642.0,5.03039725]
[1625324740974,0.51131614,34644.0,34643.0,0.00342071]
[1625324741075,0.51131614,34644.0,34643.0,0.06242071]
[1625324741275,0.51131614,34644.0,34643.0,4.7899778]
[1625324743381,0.17049549,34644.0,34643.0,4.7899778]
[1625324744085,0.51130334,34645.0,34643.0,4.7899778]
[1625324744435,0.17049197,34644.0,34643.0,0.06242071]
[1625324744534,0.17049197,34644.0,34643.0,0.059]
[1625324744785,0.51130998,34645.0,34643.0,4.7884727]
[1625324745037,0.51130998,34645.0,34644.0,0.00342068]
[1625324745237,0.51130998,34645.0,34644.0,0.06242068]
[1625324745338,0.51130998,34645.0,34644.0,4.78846411]
[1625324746496,0.51130998,34645.0,34644.0,5.02903955]
[1625324749396,0.17048986,34645.0,34644.0,5.02903955]
[1625324749899,0.51127887,34645.0,34644.0,5.02903955]
[1625324752155,0.85193208,34645.0,34644.0,5.02903955]
[1625324752806,0.51130283,34646.0,34644.0,5.02903955]
[1625324753107,0.51130283,34646.0,34645.0,0.67567067]
[1625324753205,0.51116085,34646.0,34645.0,4.79211538]
[1625324754012,0.85199113,34646.0,34645.0,4.79211538]
[1625324755216,0.51116085,34646.0,34645.0,4.79211538]
[1625324756569,0.51116085,34646.0,34645.0,3.44077404]
[1625324757121,1.19271005,34646.0,34645.0,3.44077404]
[1625324757625,2.21502722,34646.0,34645.0,2.25835036]
[1625324757923,2.21502722,34646.0,34645.0,3.44144108]
[1625324759426,2.21502722,34646.0,34645.0,0.06242068]
[1625324759527,2.21502722,34646.0,34645.0,0.059]
[1625324759629,1.19271005,34646.0,34645.0,0.059]
[1625324760176,1.19271005,34646.0,34645.0,1.41063108]